[Event "Live Chess"]
[Site "Chess.com"]
[Date "2023.05.20"]
[Round "-"]
[White "Wild_Tiger"]
[Black "WelshTiger"]
[Result "0-1"]
[WhiteElo "1057"]
[BlackElo "2405"]
[TimeControl "300"]
[EndTime "12:32:26 PDT"]
[Termination "WelshTiger won by checkmate"]

1. d4 {[%clk 0:04:57.7]} 1... d5 {[%clk 0:04:50.8]} 2. Nf3 {[%clk 0:04:57.6]}
2... c5 {[%clk 0:04:49.7]} 3. e3 {[%clk 0:04:47.1]} 3... Nf6 {[%clk 0:04:46.2]}
4. b3 {[%clk 0:04:42]} 4... Bg4 {[%clk 0:04:42.4]} 5. Bb2 {[%clk 0:04:37.9]}
5... e6 {[%clk 0:04:41]} 6. Nbd2 {[%clk 0:04:35.9]} 6... Bd6 {[%clk 0:04:38.5]}
7. h3 {[%clk 0:04:33.5]} 7... Bh5 {[%clk 0:04:37.3]} 8. Be2 {[%clk 0:04:25.3]}
8... O-O {[%clk 0:04:35.5]} 9. Ne5 {[%clk 0:04:19.7]} 9... Bxe2 {[%clk
0:04:33.6]} 10. Qxe2 {[%clk 0:04:16.2]} 10... Nc6 {[%clk 0:04:33.2]} 11. f4
{[%clk 0:04:12.6]} 11... Qb6 {[%clk 0:04:24.9]} 12. O-O {[%clk 0:04:06.3]} 12...
cxd4 {[%clk 0:04:22.8]} 13. e4 {[%clk 0:03:55]} 13... d3+ {[%clk 0:04:18.4]} 14.
Qf2 {[%clk 0:03:51.6]} 14... Bc5 {[%clk 0:04:16.7]} 15. Qxc5 {[%clk 0:03:14.9]}
15... Qxc5+ {[%clk 0:04:15.4]} 16. Kh1 {[%clk 0:03:11.3]} 16... Qxc2 {[%clk
0:04:14.5]} 17. Ba3 {[%clk 0:03:01.2]} 17... Qxd2 {[%clk 0:04:09.9]} 18. Bxf8
{[%clk 0:02:59.3]} 18... Rxf8 {[%clk 0:04:09.8]} 19. exd5 {[%clk 0:02:46.5]}
19... Nxd5 {[%clk 0:04:06.2]} 20. f5 {[%clk 0:02:34.7]} 20... Nxe5 {[%clk
0:04:04.2]} 21. fxe6 {[%clk 0:02:31.7]} 21... fxe6 {[%clk 0:04:02.5]} 22. Rxf8+
{[%clk 0:02:30.3]} 22... Kxf8 {[%clk 0:04:02.4]} 23. Rf1+ {[%clk 0:02:26.4]}
23... Ke7 {[%clk 0:04:01]} 24. a4 {[%clk 0:02:20.7]} 24... Ne3 {[%clk
0:03:59.9]} 25. Rg1 {[%clk 0:02:18.5]} 25... Nf5 {[%clk 0:03:53.9]} 26. Kh2
{[%clk 0:02:12.1]} 26... Nf3+ {[%clk 0:03:51.7]} 27. Kh1 {[%clk 0:02:12]} 27...
Nxg1 {[%clk 0:03:50]} 28. Kxg1 {[%clk 0:02:10.5]} 28... Qe3+ {[%clk 0:03:49.8]}
29. Kh2 {[%clk 0:02:09]} 29... d2 {[%clk 0:03:49.7]} 30. b4 {[%clk 0:02:06.8]}
30... Qg3+ {[%clk 0:03:49.3]} 31. Kh1 {[%clk 0:02:03.7]} 31... d1=Q# {[%clk
0:03:49.2]} 0-1

[Event "Live Chess"]
[Site "Chess.com"]
[Date "2023.05.20"]
[Round "-"]
[White "Olisingapore"]
[Black "AttackingSnowLeopard"]
[Result "0-1"]
[WhiteElo "1899"]
[BlackElo "2031"]
[TimeControl "300"]
[EndTime "12:32:28 PDT"]
[Termination "AttackingSnowLeopard won by checkmate"]

1. d4 {[%clk 0:04:56.6]} 1... d5 {[%clk 0:04:58.5]} 2. c4 {[%clk 0:04:56.3]}
2... c6 {[%clk 0:04:58.2]} 3. Nf3 {[%clk 0:04:55.3]} 3... Nf6 {[%clk 0:04:57.8]}
4. g3 {[%clk 0:04:54.7]} 4... Bf5 {[%clk 0:04:56.3]} 5. Bg2 {[%clk 0:04:54.3]}
5... e6 {[%clk 0:04:55.6]} 6. Qb3 {[%clk 0:04:53.1]} 6... Qb6 {[%clk 0:04:54]}
7. c5 {[%clk 0:04:52.5]} 7... Qxb3 {[%clk 0:04:52.6]} 8. axb3 {[%clk 0:04:52.4]}
8... Nbd7 {[%clk 0:04:51.7]} 9. O-O {[%clk 0:04:47.3]} 9... Be7 {[%clk
0:04:51.2]} 10. Ra4 {[%clk 0:04:44.8]} 10... O-O {[%clk 0:04:49.4]} 11. Bf4
{[%clk 0:04:42]} 11... a6 {[%clk 0:04:45.9]} 12. Nc3 {[%clk 0:04:39.4]} 12...
Ne4 {[%clk 0:04:43.7]} 13. Rfa1 {[%clk 0:04:35.2]} 13... Ndf6 {[%clk 0:04:41.2]}
14. Ne5 {[%clk 0:04:23.7]} 14... Nxc3 {[%clk 0:04:18.8]} 15. bxc3 {[%clk
0:04:21.4]} 15... Ne4 {[%clk 0:04:18.3]} 16. Bxe4 {[%clk 0:04:07.1]} 16... Bxe4
{[%clk 0:04:16.6]} 17. Nd7 {[%clk 0:04:05.1]} 17... Rfe8 {[%clk 0:04:09.9]} 18.
Nb6 {[%clk 0:04:04.6]} 18... Ra7 {[%clk 0:04:08.4]} 19. Bd6 {[%clk 0:03:59.4]}
19... Bd8 {[%clk 0:04:03.9]} 20. f3 {[%clk 0:03:53.4]} 20... Bc2 {[%clk
0:03:57.9]} 21. Rc1 {[%clk 0:03:46.3]} 21... Bxb3 {[%clk 0:03:53.9]} 22. Rb4
{[%clk 0:03:44]} 22... Bc4 {[%clk 0:03:51.8]} 23. Nxc4 {[%clk 0:03:41.6]} 23...
dxc4 {[%clk 0:03:50.5]} 24. Rcb1 {[%clk 0:03:39.5]} 24... Ba5 {[%clk 0:03:47.8]}
25. Rxb7 {[%clk 0:03:37.4]} 25... Rxb7 {[%clk 0:03:47]} 26. Rxb7 {[%clk
0:03:36.1]} 26... Bxc3 {[%clk 0:03:46.7]} 27. Rb6 {[%clk 0:03:29.9]} 27... Bxd4+
{[%clk 0:03:45.6]} 28. Kg2 {[%clk 0:03:27]} 28... c3 {[%clk 0:03:44.1]} 29. Rxc6
{[%clk 0:03:03.5]} 29... Be3 {[%clk 0:03:40.9]} 30. Be5 {[%clk 0:02:39]} 30...
c2 {[%clk 0:03:37.8]} 31. Bb2 {[%clk 0:02:38.1]} 31... c1=Q {[%clk 0:03:37.1]}
32. Bxc1 {[%clk 0:02:33.9]} 32... Bxc1 {[%clk 0:03:35.9]} 33. Rxa6 {[%clk
0:02:33.2]} 33... Rc8 {[%clk 0:03:32.2]} 34. c6 {[%clk 0:02:28.2]} 34... Kf8
{[%clk 0:03:29.4]} 35. e4 {[%clk 0:02:24.4]} 35... f6 {[%clk 0:03:23.2]} 36. f4
{[%clk 0:02:20.6]} 36... Bb2 {[%clk 0:03:16.7]} 37. Kf3 {[%clk 0:02:16.9]} 37...
Rc7 {[%clk 0:03:15.2]} 38. h4 {[%clk 0:02:14.6]} 38... Ke7 {[%clk 0:03:14.2]}
39. g4 {[%clk 0:02:09.3]} 39... e5 {[%clk 0:03:13.3]} 40. f5 {[%clk 0:02:02.7]}
40... Kd6 {[%clk 0:03:12.2]} 41. g5 {[%clk 0:01:57.9]} 41... Rxc6 {[%clk
0:03:10.2]} 42. Rxc6+ {[%clk 0:01:53.9]} 42... Kxc6 {[%clk 0:03:08.3]} 43. Ke2
{[%clk 0:01:40.7]} 43... Kc5 {[%clk 0:03:06.8]} 44. Kd3 {[%clk 0:01:39.9]} 44...
Bc1 {[%clk 0:03:05.6]} 45. g6 {[%clk 0:01:29.1]} 45... hxg6 {[%clk 0:03:03.6]}
46. fxg6 {[%clk 0:01:26.1]} 46... Bh6 {[%clk 0:03:02.4]} 47. h5 {[%clk
0:01:22.5]} 47... Kb4 {[%clk 0:03:01.2]} 48. Kc2 {[%clk 0:01:13.5]} 48... Kc4
{[%clk 0:03:00.3]} 49. Kd1 {[%clk 0:01:10.1]} 49... Kd4 {[%clk 0:02:59.8]} 50.
Ke2 {[%clk 0:01:10]} 50... Kxe4 {[%clk 0:02:59]} 51. Kf2 {[%clk 0:01:09.1]}
51... Kd3 {[%clk 0:02:58.6]} 52. Kf3 {[%clk 0:01:08.3]} 52... e4+ {[%clk
0:02:57.7]} 53. Kf2 {[%clk 0:01:07.5]} 53... Kd2 {[%clk 0:02:57.3]} 54. Kg3
{[%clk 0:01:06.1]} 54... e3 {[%clk 0:02:56.8]} 55. Kg4 {[%clk 0:01:05]} 55... e2
{[%clk 0:02:56.4]} 56. Kf5 {[%clk 0:01:04.4]} 56... e1=Q {[%clk 0:02:54.8]} 57.
Kg4 {[%clk 0:01:03.2]} 57... Qe4+ {[%clk 0:02:52.7]} 58. Kg3 {[%clk 0:01:02.1]}
58... Bf4+ {[%clk 0:02:51.6]} 59. Kg4 {[%clk 0:01:01.1]} 59... Be5+ {[%clk
0:02:50]} 60. Kh3 {[%clk 0:01:00.7]} 60... Qf3+ {[%clk 0:02:49.3]} 61. Kh4
{[%clk 0:00:59.5]} 61... Qg3# {[%clk 0:02:48.6]} 0-1

[Event "Live Chess"]
[Site "Chess.com"]
[Date "2023.05.20"]
[Round "-"]
[White "rideuv21"]
[Black "MartinWalker4"]
[Result "1/2-1/2"]
[WhiteElo "1838"]
[BlackElo "2073"]
[TimeControl "300"]
[EndTime "12:32:29 PDT"]
[Termination "Game drawn by agreement"]

1. e4 {[%clk 0:04:58.5]} 1... Nf6 {[%clk 0:04:57.4]} 2. e5 {[%clk 0:04:57.5]}
2... Nd5 {[%clk 0:04:56]} 3. d4 {[%clk 0:04:57.4]} 3... d6 {[%clk 0:04:54.5]} 4.
Nf3 {[%clk 0:04:56.4]} 4... g6 {[%clk 0:04:51.8]} 5. Bc4 {[%clk 0:04:54]} 5...
Nb6 {[%clk 0:04:49.9]} 6. Bb3 {[%clk 0:04:53.7]} 6... Bg7 {[%clk 0:04:48.4]} 7.
a4 {[%clk 0:04:53.3]} 7... a5 {[%clk 0:04:38.6]} 8. O-O {[%clk 0:04:50.6]} 8...
O-O {[%clk 0:04:36.3]} 9. Nc3 {[%clk 0:04:48.8]} 9... dxe5 {[%clk 0:04:32.2]}
10. Nxe5 {[%clk 0:04:44.1]} 10... Bxe5 {[%clk 0:04:29.8]} 11. dxe5 {[%clk
0:04:44]} 11... Qxd1 {[%clk 0:04:28.1]} 12. Rxd1 {[%clk 0:04:43.9]} 12... Nc6
{[%clk 0:04:26.6]} 13. Bf4 {[%clk 0:04:41.5]} 13... Be6 {[%clk 0:04:19.6]} 14.
Nb5 {[%clk 0:04:34.1]} 14... Rac8 {[%clk 0:04:13.7]} 15. Bxe6 {[%clk 0:04:30.3]}
15... fxe6 {[%clk 0:04:11.8]} 16. Bg3 {[%clk 0:04:30.2]} 16... Rf5 {[%clk
0:03:39.1]} 17. Nd4 {[%clk 0:04:16.5]} 17... Nxd4 {[%clk 0:03:28.3]} 18. Rxd4
{[%clk 0:04:16.4]} 18... c5 {[%clk 0:03:21]} 19. Rd2 {[%clk 0:04:12.4]} 19...
Rc7 {[%clk 0:03:11.6]} 20. b3 {[%clk 0:04:10.7]} 20... c4 {[%clk 0:03:00.6]} 21.
Rad1 {[%clk 0:04:08]} 21... cxb3 {[%clk 0:02:55.3]} 22. cxb3 {[%clk 0:04:07.9]}
22... Rc3 {[%clk 0:02:52.4]} 23. Rd3 {[%clk 0:04:05.3]} 23... Rxd3 {[%clk
0:02:45.8]} 24. Rxd3 {[%clk 0:04:05.2]} 24... Nd5 {[%clk 0:02:44.5]} 25. Kf1
{[%clk 0:03:59.8]} 25... Rf8 {[%clk 0:02:42.2]} 26. Ke2 {[%clk 0:03:53.6]} 26...
Rc8 {[%clk 0:02:39.6]} 27. Kd2 {[%clk 0:03:52.9]} 27... b5 {[%clk 0:02:29.3]}
28. axb5 {[%clk 0:03:51]} 28... Rb8 {[%clk 0:02:26.8]} 29. f3 {[%clk 0:03:34.9]}
29... Rxb5 {[%clk 0:02:24.4]} 30. Bf2 {[%clk 0:03:33.6]} 30... Kf7 {[%clk
0:02:19.8]} 31. Bd4 {[%clk 0:03:22.7]} 31... Rb4 {[%clk 0:02:00.4]} 32. g3
{[%clk 0:02:59.1]} 32... a4 {[%clk 0:01:58.2]} 33. bxa4 {[%clk 0:02:56.7]} 33...
Rxa4 {[%clk 0:01:56.4]} 34. Ke2 {[%clk 0:02:54.1]} 1/2-1/2

[Event "Live Chess"]
[Site "Chess.com"]
[Date "2023.05.20"]
[Round "-"]
[White "Doge_Dandolo"]
[Black "HugeManAmin"]
[Result "1-0"]
[WhiteElo "2005"]
[BlackElo "1107"]
[TimeControl "300"]
[EndTime "12:32:29 PDT"]
[Termination "Doge_Dandolo won by resignation"]

1. Nf3 {[%clk 0:04:56]} 1... Nc6 {[%clk 0:04:51.1]} 2. e4 {[%clk 0:04:35.7]}
2... e5 {[%clk 0:04:48.4]} 3. Bc4 {[%clk 0:04:34.7]} 3... Nf6 {[%clk 0:04:46.4]}
4. d4 {[%clk 0:04:33.1]} 4... exd4 {[%clk 0:04:42.1]} 5. c3 {[%clk 0:04:31.6]}
5... dxc3 {[%clk 0:04:29]} 6. Nxc3 {[%clk 0:04:30.3]} 6... Bb4 {[%clk
0:04:25.7]} 7. O-O {[%clk 0:04:28.7]} 7... O-O {[%clk 0:04:01.1]} 8. e5 {[%clk
0:04:24.1]} 8... Ng4 {[%clk 0:03:50.3]} 9. Re1 {[%clk 0:04:08.9]} 9... Re8
{[%clk 0:03:42.8]} 10. Qd5 {[%clk 0:04:02.8]} 10... Re7 {[%clk 0:03:19.2]} 11.
Bg5 {[%clk 0:03:57.5]} 1-0

[Event "Live Chess"]
[Site "Chess.com"]
[Date "2023.05.20"]
[Round "-"]
[White "KeithArkell"]
[Black "SirEntrails"]
[Result "1-0"]
[WhiteElo "2615"]
[BlackElo "537"]
[TimeControl "300"]
[EndTime "12:32:36 PDT"]
[Termination "KeithArkell won by checkmate"]

1. d4 {[%clk 0:04:54.9]} 1... d5 {[%clk 0:04:54.1]} 2. Nf3 {[%clk 0:04:53.9]}
2... Bf5 {[%clk 0:04:45.6]} 3. c4 {[%clk 0:04:52.8]} 3... dxc4 {[%clk
0:04:42.5]} 4. Nc3 {[%clk 0:04:50.8]} 4... Nf6 {[%clk 0:04:36.2]} 5. e3 {[%clk
0:04:48.6]} 5... Ne4 {[%clk 0:04:32.9]} 6. Bxc4 {[%clk 0:04:47.3]} 6... Nxc3
{[%clk 0:04:27.3]} 7. bxc3 {[%clk 0:04:46.6]} 7... Nc6 {[%clk 0:04:22.1]} 8. Qb3
{[%clk 0:04:41.7]} 8... Na5 {[%clk 0:04:19]} 9. Bxf7+ {[%clk 0:04:40.5]} 9...
Kd7 {[%clk 0:04:10.5]} 10. Qd5+ {[%clk 0:04:38.9]} 10... Kc8 {[%clk 0:04:02.3]}
11. Qxf5+ {[%clk 0:04:38]} 11... Kb8 {[%clk 0:03:59.9]} 12. Qxa5 {[%clk
0:04:36.9]} 12... b6 {[%clk 0:03:58.3]} 13. Qa6 {[%clk 0:04:35.6]} 13... e6
{[%clk 0:03:54.8]} 14. Ne5 {[%clk 0:04:32.9]} 14... Bd6 {[%clk 0:03:43.9]} 15.
Nc6# {[%clk 0:04:31.8]} 1-0

[Event "Live Chess"]
[Site "Chess.com"]
[Date "2023.05.20"]
[Round "-"]
[White "domrobson"]
[Black "alanmike75"]
[Result "1/2-1/2"]
[WhiteElo "1719"]
[BlackElo "1533"]
[TimeControl "300"]
[EndTime "12:32:41 PDT"]
[Termination "Game drawn by repetition"]

1. d4 {[%clk 0:04:58.9]} 1... d5 {[%clk 0:04:58.2]} 2. c4 {[%clk 0:04:58.4]}
2... dxc4 {[%clk 0:04:56.8]} 3. Nf3 {[%clk 0:04:57]} 3... Nf6 {[%clk 0:04:53.6]}
4. Nc3 {[%clk 0:04:56]} 4... e6 {[%clk 0:04:49.9]} 5. e3 {[%clk 0:04:55.4]} 5...
c5 {[%clk 0:04:48.6]} 6. Bxc4 {[%clk 0:04:52.1]} 6... cxd4 {[%clk 0:04:47.3]} 7.
exd4 {[%clk 0:04:51.3]} 7... Nc6 {[%clk 0:04:46.3]} 8. O-O {[%clk 0:04:50.1]}
8... Be7 {[%clk 0:04:43.2]} 9. d5 {[%clk 0:04:49.3]} 9... exd5 {[%clk
0:04:40.3]} 10. Nxd5 {[%clk 0:04:48.5]} 10... Nxd5 {[%clk 0:04:37.8]} 11. Bxd5
{[%clk 0:04:47.3]} 11... O-O {[%clk 0:04:35.8]} 12. Re1 {[%clk 0:04:41.1]} 12...
Bf6 {[%clk 0:04:33.3]} 13. Rb1 {[%clk 0:04:33.2]} 13... Bg4 {[%clk 0:04:26.6]}
14. Be3 {[%clk 0:04:25.6]} 14... Rc8 {[%clk 0:04:08.4]} 15. h3 {[%clk
0:03:41.7]} 15... Bf5 {[%clk 0:04:03.6]} 16. Rc1 {[%clk 0:03:24.3]} 16... Bxb2
{[%clk 0:03:59.8]} 17. Rc4 {[%clk 0:03:21.7]} 17... Bf6 {[%clk 0:03:42.5]} 18.
Rf4 {[%clk 0:03:18.8]} 18... Bg6 {[%clk 0:03:36]} 19. Bxc6 {[%clk 0:03:06.1]}
19... Qxd1 {[%clk 0:03:25.8]} 20. Rxd1 {[%clk 0:03:04.5]} 20... Rxc6 {[%clk
0:03:24.4]} 21. Bxa7 {[%clk 0:03:02.7]} 21... Rc2 {[%clk 0:03:10]} 22. Nd4
{[%clk 0:02:50.2]} 22... Bxd4 {[%clk 0:03:03.1]} 23. Rfxd4 {[%clk 0:02:46.1]}
23... Rxa2 {[%clk 0:02:59.7]} 24. Bc5 {[%clk 0:02:42.5]} 24... Re8 {[%clk
0:02:56.9]} 25. Rd8 {[%clk 0:02:40.5]} 25... Ra8 {[%clk 0:02:55.1]} 26. Bb6
{[%clk 0:02:36.6]} 26... Be4 {[%clk 0:02:50.9]} 27. Rxa8 {[%clk 0:02:33.9]}
27... Rxa8 {[%clk 0:02:49.2]} 28. Rd8+ {[%clk 0:02:33.5]} 28... Rxd8 {[%clk
0:02:47.6]} 29. Bxd8 {[%clk 0:02:33.4]} 29... Bc6 {[%clk 0:02:46.3]} 30. Bb6
{[%clk 0:02:33.3]} 30... f6 {[%clk 0:02:43.3]} 31. g3 {[%clk 0:02:33.2]} 31...
Kf7 {[%clk 0:02:42.1]} 32. h4 {[%clk 0:02:33.1]} 32... g6 {[%clk 0:02:40.7]} 33.
Kf1 {[%clk 0:02:32.5]} 33... h5 {[%clk 0:02:39.3]} 34. Ke1 {[%clk 0:02:31.6]}
34... Ke6 {[%clk 0:02:38.3]} 35. Kd2 {[%clk 0:02:30.8]} 35... f5 {[%clk
0:02:37.5]} 36. Kc3 {[%clk 0:02:29.4]} 36... Kd5 {[%clk 0:02:36.6]} 37. Be3
{[%clk 0:02:28.2]} 37... Ke4 {[%clk 0:02:35.3]} 38. Kb4 {[%clk 0:02:28.1]} 38...
Kf3 {[%clk 0:02:33.1]} 39. Kc5 {[%clk 0:02:26.4]} 39... Ke4 {[%clk 0:02:32]} 40.
Kb6 {[%clk 0:02:25.6]} 40... Kd5 {[%clk 0:02:30.5]} 41. Bh6 {[%clk 0:02:24.8]}
41... Ke6 {[%clk 0:02:28]} 42. Bg5 {[%clk 0:02:23.4]} 42... Kf7 {[%clk
0:02:27.3]} 43. Bf4 {[%clk 0:02:23.3]} 43... Ke6 {[%clk 0:02:26.6]} 44. Bg5
{[%clk 0:02:22.7]} 44... Kf7 {[%clk 0:02:26.5]} 45. Bf4 {[%clk 0:02:22.6]} 45...
Ke6 {[%clk 0:02:25.9]} 46. Bg5 {[%clk 0:02:22.5]} 1/2-1/2

[Event "Live Chess"]
[Site "Chess.com"]
[Date "2023.05.20"]
[Round "-"]
[White "FlyingChessKestrel13"]
[Black "LL220284LL"]
[Result "0-1"]
[WhiteElo "2125"]
[BlackElo "2404"]
[TimeControl "300"]
[EndTime "12:32:54 PDT"]
[Termination "LL220284LL won by resignation"]

1. e4 {[%clk 0:04:57.7]} 1... d5 {[%clk 0:04:58.3]} 2. exd5 {[%clk 0:04:56.5]}
2... Qxd5 {[%clk 0:04:58.2]} 3. Nc3 {[%clk 0:04:55.5]} 3... Qa5 {[%clk
0:04:56.9]} 4. Bc4 {[%clk 0:04:54.4]} 4... Nf6 {[%clk 0:04:54.4]} 5. d3 {[%clk
0:04:52.8]} 5... c6 {[%clk 0:04:53.1]} 6. Ne2 {[%clk 0:04:51.2]} 6... Bf5 {[%clk
0:04:51.4]} 7. O-O {[%clk 0:04:50.3]} 7... h6 {[%clk 0:04:49.8]} 8. Bd2 {[%clk
0:04:49.7]} 8... Qc7 {[%clk 0:04:47.8]} 9. Bf4 {[%clk 0:04:47.3]} 9... e5 {[%clk
0:04:45.8]} 10. Bg3 {[%clk 0:04:46.8]} 10... Nbd7 {[%clk 0:04:44.5]} 11. d4
{[%clk 0:04:44.9]} 11... Bd6 {[%clk 0:04:41.9]} 12. dxe5 {[%clk 0:04:41.1]}
12... Bxe5 {[%clk 0:04:41.8]} 13. Bxe5 {[%clk 0:04:40]} 13... Nxe5 {[%clk
0:04:41.7]} 14. Ng3 {[%clk 0:04:38.1]} 14... Bg6 {[%clk 0:04:36.7]} 15. Bb3
{[%clk 0:04:35.6]} 15... O-O {[%clk 0:04:35.2]} 16. Re1 {[%clk 0:04:29.6]} 16...
Rad8 {[%clk 0:04:34.4]} 17. Qc1 {[%clk 0:04:25.6]} 17... a6 {[%clk 0:04:32]} 18.
Qf4 {[%clk 0:04:22.2]} 18... Rfe8 {[%clk 0:04:27.6]} 19. Nf5 {[%clk 0:04:14.2]}
19... Bxf5 {[%clk 0:04:20.8]} 20. Qxf5 {[%clk 0:04:12.9]} 20... c5 {[%clk
0:04:19.5]} 21. f4 {[%clk 0:04:01.3]} 21... Nc6 {[%clk 0:04:10.1]} 22. Rxe8+
{[%clk 0:03:49.4]} 22... Rxe8 {[%clk 0:04:08.8]} 23. Rf1 {[%clk 0:03:48.7]}
23... Nd4 {[%clk 0:04:07.4]} 24. Nd5 {[%clk 0:03:31.5]} 24... Nxf5 {[%clk
0:03:54.8]} 25. Nxc7 {[%clk 0:03:28.8]} 25... Rc8 {[%clk 0:03:54.4]} 26. Nd5
{[%clk 0:03:17.3]} 26... c4 {[%clk 0:03:53.3]} 27. Nxf6+ {[%clk 0:03:16.3]}
27... gxf6 {[%clk 0:03:52.2]} 28. Rd1 {[%clk 0:03:13.8]} 28... cxb3 {[%clk
0:03:51]} 29. cxb3 {[%clk 0:03:12.8]} 29... Rc2 {[%clk 0:03:50.4]} 30. Rd7
{[%clk 0:03:10.9]} 30... Rxb2 {[%clk 0:03:48.6]} 31. Rxb7 {[%clk 0:03:10.4]}
31... Rxa2 {[%clk 0:03:48]} 32. Rb6 {[%clk 0:03:09]} 32... Kg7 {[%clk
0:03:45.7]} 33. h3 {[%clk 0:03:08.2]} 33... Ne3 {[%clk 0:03:44.3]} 34. g4 {[%clk
0:03:04.9]} 34... Nd5 {[%clk 0:03:43.6]} 35. Rd6 {[%clk 0:03:01.2]} 35... Nxf4
{[%clk 0:03:43.1]} 0-1

[Event "Live Chess"]
[Site "Chess.com"]
[Date "2023.05.20"]
[Round "-"]
[White "Greenbecker"]
[Black "azimchess2019"]
[Result "1-0"]
[WhiteElo "1633"]
[BlackElo "1362"]
[TimeControl "300"]
[EndTime "12:33:14 PDT"]
[Termination "Greenbecker won by resignation"]

1. e4 {[%clk 0:04:58]} 1... c5 {[%clk 0:04:59.2]} 2. Nf3 {[%clk 0:04:57.2]} 2...
d6 {[%clk 0:04:58.5]} 3. d4 {[%clk 0:04:56.6]} 3... cxd4 {[%clk 0:04:58.4]} 4.
Nxd4 {[%clk 0:04:55.8]} 4... Nf6 {[%clk 0:04:55.4]} 5. Nc3 {[%clk 0:04:54.2]}
5... a6 {[%clk 0:04:54.8]} 6. Bg5 {[%clk 0:04:53.1]} 6... g6 {[%clk 0:04:53.8]}
7. f3 {[%clk 0:04:49.9]} 7... Bg7 {[%clk 0:04:53]} 8. Bc4 {[%clk 0:04:46.5]}
8... O-O {[%clk 0:04:52.1]} 9. O-O {[%clk 0:04:45]} 9... Qb6 {[%clk 0:04:50]}
10. Be3 {[%clk 0:04:41.6]} 10... Qc7 {[%clk 0:04:49.4]} 11. Bb3 {[%clk
0:04:39.8]} 11... Nc6 {[%clk 0:04:48.5]} 12. Nxc6 {[%clk 0:04:38.2]} 12... bxc6
{[%clk 0:04:47.9]} 13. Qd2 {[%clk 0:04:35.6]} 13... Rd8 {[%clk 0:04:46.1]} 14.
Bh6 {[%clk 0:04:34.1]} 14... Qb6+ {[%clk 0:04:42.9]} 15. Kh1 {[%clk 0:04:30]}
15... Be6 {[%clk 0:04:42]} 16. Bxg7 {[%clk 0:04:28.3]} 16... Kxg7 {[%clk
0:04:41.1]} 17. Bxe6 {[%clk 0:04:26.4]} 17... fxe6 {[%clk 0:04:41]} 18. b3
{[%clk 0:04:22.6]} 18... e5 {[%clk 0:04:37.6]} 19. Rad1 {[%clk 0:04:18.6]} 19...
d5 {[%clk 0:04:33.6]} 20. exd5 {[%clk 0:04:17.5]} 20... Nxd5 {[%clk 0:04:31.6]}
21. Nxd5 {[%clk 0:04:16.2]} 21... Rxd5 {[%clk 0:04:30.6]} 22. Qe2 {[%clk
0:04:11.2]} 22... Rad8 {[%clk 0:04:28.7]} 23. Rxd5 {[%clk 0:04:10.2]} 23... Rxd5
{[%clk 0:04:28.6]} 24. Rd1 {[%clk 0:04:08.2]} 24... Qb5 {[%clk 0:04:17.1]} 25.
Qf1 {[%clk 0:03:55.7]} 25... h6 {[%clk 0:04:00]} 26. c4 {[%clk 0:03:49.6]} 26...
Rxd1 {[%clk 0:03:55.9]} 27. Qxd1 {[%clk 0:03:48.4]} 27... Qa5 {[%clk 0:03:47.6]}
28. Qa1 {[%clk 0:03:43.1]} 28... Kf6 {[%clk 0:03:43.1]} 29. h3 {[%clk
0:03:41.4]} 29... g5 {[%clk 0:03:37.5]} 30. Kh2 {[%clk 0:03:37.8]} 30... Qc5
{[%clk 0:03:33.6]} 31. Qb2 {[%clk 0:03:31.4]} 31... Qd6 {[%clk 0:03:30.8]} 32.
Qe2 {[%clk 0:03:27.9]} 32... c5 {[%clk 0:03:18.3]} 33. g3 {[%clk 0:03:22.8]}
33... h5 {[%clk 0:03:11.7]} 34. g4 {[%clk 0:03:18.9]} 34... hxg4 {[%clk
0:03:08]} 35. fxg4 {[%clk 0:03:17.2]} 35... e4+ {[%clk 0:03:06.7]} 36. Kg2
{[%clk 0:03:14.4]} 36... Qd4 {[%clk 0:02:57.3]} 37. Qf2+ {[%clk 0:03:10.3]}
37... Qxf2+ {[%clk 0:02:49.4]} 38. Kxf2 {[%clk 0:03:09.1]} 38... e5 {[%clk
0:02:42.5]} 39. Ke3 {[%clk 0:02:58.6]} 39... Ke6 {[%clk 0:02:38.4]} 40. Kxe4
{[%clk 0:02:57.6]} 40... Kf6 {[%clk 0:02:37.9]} 41. a3 {[%clk 0:02:54.7]} 41...
a5 {[%clk 0:02:37]} 42. Kd5 {[%clk 0:02:52.1]} 42... a4 {[%clk 0:02:26.8]} 43.
bxa4 {[%clk 0:02:50.1]} 1-0

[Event "Live Chess"]
[Site "Chess.com"]
[Date "2023.05.20"]
[Round "-"]
[White "xx_blindpuffin_xx"]
[Black "Conradical12"]
[Result "1-0"]
[WhiteElo "2215"]
[BlackElo "1575"]
[TimeControl "300"]
[EndTime "12:33:20 PDT"]
[Termination "xx_blindpuffin_xx won by resignation"]

1. d4 {[%clk 0:04:59.2]} 1... Nf6 {[%clk 0:04:57.6]} 2. Bf4 {[%clk 0:04:57.7]}
2... d6 {[%clk 0:04:54.6]} 3. e3 {[%clk 0:04:55.8]} 3... Nd5 {[%clk 0:04:51.9]}
4. Bg3 {[%clk 0:04:54.8]} 4... Nb6 {[%clk 0:04:47.8]} 5. c4 {[%clk 0:04:53.8]}
5... e6 {[%clk 0:04:46]} 6. Nc3 {[%clk 0:04:53.2]} 6... Be7 {[%clk 0:04:43.4]}
7. Nf3 {[%clk 0:04:51.5]} 7... O-O {[%clk 0:04:42.4]} 8. Bd3 {[%clk 0:04:50.9]}
8... Nc6 {[%clk 0:04:40.4]} 9. a3 {[%clk 0:04:47.4]} 9... a5 {[%clk 0:04:37.8]}
10. O-O {[%clk 0:04:45.8]} 10... f5 {[%clk 0:04:36.6]} 11. Rb1 {[%clk
0:04:40.7]} 11... g5 {[%clk 0:04:34.7]} 12. h3 {[%clk 0:04:31.5]} 12... Kh8
{[%clk 0:04:25.5]} 13. b4 {[%clk 0:04:28.9]} 13... axb4 {[%clk 0:04:23.2]} 14.
axb4 {[%clk 0:04:28.8]} 14... Ra3 {[%clk 0:04:22]} 15. Qc1 {[%clk 0:04:26.6]}
15... Ra8 {[%clk 0:03:58.1]} 16. b5 {[%clk 0:04:25]} 16... Na5 {[%clk
0:03:54.9]} 17. Nd2 {[%clk 0:04:06]} 17... f4 {[%clk 0:03:50.2]} 18. Bh2 {[%clk
0:04:04.4]} 18... e5 {[%clk 0:03:41.8]} 19. Qc2 {[%clk 0:03:54.9]} 19... f3
{[%clk 0:03:28.8]} 20. Nxf3 {[%clk 0:03:45.7]} 20... Bxh3 {[%clk 0:03:26.9]} 21.
dxe5 {[%clk 0:03:43.9]} 21... dxe5 {[%clk 0:03:20.9]} 22. Bxe5+ {[%clk
0:03:41.1]} 22... Bf6 {[%clk 0:03:15.7]} 23. Bg3 {[%clk 0:03:33.8]} 23... g4
{[%clk 0:03:00.4]} 24. Ne5 {[%clk 0:03:25.6]} 24... c6 {[%clk 0:02:33]} 25. bxc6
{[%clk 0:03:21.1]} 25... Nxc6 {[%clk 0:02:29.2]} 26. Nxc6 {[%clk 0:03:19.4]}
26... bxc6 {[%clk 0:02:28]} 27. gxh3 {[%clk 0:03:18.1]} 27... gxh3 {[%clk
0:02:26.2]} 28. Ne4 {[%clk 0:03:14.3]} 28... Rg8 {[%clk 0:02:24]} 29. Nxf6
{[%clk 0:03:10.6]} 29... Qxf6 {[%clk 0:02:21]} 30. Rxb6 {[%clk 0:03:09.6]} 30...
Raf8 {[%clk 0:01:46.1]} 31. Qb2 {[%clk 0:03:03.1]} 31... Qxb2 {[%clk 0:01:27.6]}
32. Rxb2 {[%clk 0:03:03]} 1-0